[Event "Queens Festival Final-D 2022"]
[Site "Tornelo"]
[Date "2022.06.25"]
[Round "2.6"]
[White "Shriyan santosh Priyasha"]
[Black "Aydogan, Arya"]
[Result "1-0"]
[ECO "D26"]
[WhiteElo "1597"]
[BlackElo "1409"]
[Annotator "NA RC"]
[PlyCount "81"]
[EventDate "2022.06.24"]
[EventType "tourn"]
[EventCountry "NET"]
[SourceTitle "playchess.com"]
[Source "ChessBase"]
[SourceQuality "1"]
[TimeControl "180+2"]

1. d4 {[%emt 0:00:02]} d5 {[%emt 0:00:04]} 2. c4 {[%emt 0:00:03]} e6 {[%emt 0:00:01]} 3. Nf3 {[%emt 0:00:05]} a6 {[%emt 0:00:02]} 4. e3 {[%emt 0:00:06]} dxc4 {[%emt 0:00:03]} 5. Bxc4 {[%emt 0:00:02]} b5 {[%emt 0:00:02]} 6. Bb3 {[%emt 0:00:03]} Nf6 {[%emt 0:00:03]} 7. O-O {[%emt 0:00:02]} Bb7 {[%emt 0:00:09]} 8. Nc3 {[%emt 0:00:03]} Bd6 {[%emt 0:00:04]} 9. a3 {[%emt 0:00:05]} Nbd7 {[%emt 0:00:03]} 10. Re1 {[%emt 0:00:03]} c5 {[%emt 0:00:02]} 11. e4 {[%emt 0:00:12]} b4 {[%emt 0:00:28]} 12. axb4 {[%emt 0:01:10]} cxb4 {[%emt 0:00:04]} 13. e5 {[%emt 0:00:06]} bxc3 {[%emt 0:00:06]} 14. exf6 {[%emt 0:00:08]} Qxf6 {[%emt 0:00:40]} 15. bxc3 {[%emt 0:00:36]} O-O {[%emt 0:00:29]} 16. d5 {[%emt 0:00:37]} exd5 {[%emt 0:00:22]} 17. Bxd5 {[%emt 0:00:02]} Bxd5 {[%emt 0:00:02]} 18. Qxd5 {[%emt 0:00:00]} Nb6 {[%emt 0:00:04]} 19. Qd1 {[%emt 0:00:03]} Rfd8 {[%emt 0:00:04]} 20. Bd2 {[%emt 0:00:02]} Bf4 {[%emt 0:00:04]} 21. Qc1 {[%emt 0:00:02]} Bxd2 {[%emt 0:00:05]} 22. Nxd2 {[%emt 0:00:00]} Nd5 {[%emt 0:00:05]} 23. Ne4 {[%emt 0:00:02]} Qc6 {[%emt 0:00:03]} 24. c4 {[%emt 0:00:01]} Nf6 {[%emt 0:00:05]} 25. Nxf6+ {[%emt 0:00:02]} Qxf6 {[%emt 0:00:01]} 26. Rb1 {[%emt 0:00:01]} Rab8 {[%emt 0:00:05]} 27. Ra1 {[%emt 0:00:06]} Qc6 {[%emt 0:00:02]} 28. h3 {[%emt 0:00:04]} Rbc8 {[%emt 0:00:02]} 29. Re7 {[%emt 0:00:02]} Qxc4 {[%emt 0:00:09]} 30. Qxc4 {[%emt 0:00:00]} Rxc4 {[%emt 0:00:02]} 31. Rxa6 {[%emt 0:00:01]} h6 {[%emt 0:00:06]} 32. Raa7 {[%emt 0:00:02]} Rf8 {[%emt 0:00:01]} 33. Kh2 {[%emt 0:00:02]} Rf4 {[%emt 0:00:03]} 34. Kg3 {[%emt 0:00:02]} Rf6 {[%emt 0:00:01]} 35. Reb7 {[%emt 0:00:02]} g6 {[%emt 0:00:01]} 36. Rc7 {[%emt 0:00:02]} Kg7 {[%emt 0:00:02]} 37. Rd7 {[%emt 0:00:02]} Rc8 {[%emt 0:00:02]} 38. f3 {[%emt 0:00:01]} Rc2 {[%emt 0:00:01]} 39. Rdb7 {[%emt 0:00:03]} Rd2 {[%emt 0:00:03]} 40. Rd7 {[%emt 0:00:01]} h5 {[%emt 0:00:01]} 41. Rxd2 {[%emt 0:00:02]} 1-0

[Event "Queens Festival Final-D 2022"]
[Site "Tornelo"]
[Date "2022.06.25"]
[Round "3.2"]
[White "Vujovic, Vera"]
[Black "Shriyan santosh Priyasha"]
[Result "1-0"]
[ECO "E90"]
[WhiteElo "1353"]
[BlackElo "1597"]
[Annotator "NA RC"]
[PlyCount "89"]
[EventDate "2022.06.24"]
[EventType "tourn"]
[EventCountry "NET"]
[SourceTitle "playchess.com"]
[Source "ChessBase"]
[SourceQuality "1"]
[TimeControl "180+2"]

1. e4 {[%emt 0:00:02]} g6 {[%emt 0:00:04]} 2. d4 {[%emt 0:00:02]} Bg7 {[%emt 0:00:02]} 3. c4 {[%emt 0:00:01]} d6 {[%emt 0:00:03]} 4. Nc3 {[%emt 0:00:02]} Nd7 {[%emt 0:00:03]} 5. Nf3 {[%emt 0:00:02]} e5 {[%emt 0:00:03]} 6. d5 {[%emt 0:00:07]} Ngf6 {[%emt 0:00:03]} 7. Bd3 {[%emt 0:00:05]} O-O {[%emt 0:00:03]} 8. O-O {[%emt 0:00:01]} h6 {[%emt 0:00:07]} 9. Be3 {[%emt 0:00:03]} Re8 {[%emt 0:00:04]} 10. h3 {[%emt 0:00:04]} Kh7 {[%emt 0:00:08]} 11. a3 {[%emt 0:00:10]} c5 {[%emt 0:00:13]} 12. b4 {[%emt 0:00:08]} a6 {[%emt 0:00:28]} 13. bxc5 {[%emt 0:00:15]} Nxc5 {[%emt 0:00:00]} 14. Bxc5 {[%emt 0:00:03]} dxc5 {[%emt 0:00:00]} 15. Na4 {[%emt 0:00:10]} Qd6 {[%emt 0:00:09]} 16. Rb1 {[%emt 0:00:03]} Qc7 {[%emt 0:00:31]} 17. Nb6 {[%emt 0:00:05]} Rb8 {[%emt 0:00:05]} 18. Bc2 {[%emt 0:00:23]} Nd7 {[%emt 0:00:18]} 19. Ba4 {[%emt 0:00:10]} Rf8 {[%emt 0:00:15]} 20. d6 {[%emt 0:00:10]} Qd8 {[%emt 0:00:03]} 21. Bxd7 {[%emt 0:00:07]} Bxd7 {[%emt 0:00:04]} 22. Qd5 {[%emt 0:00:03]} Bc6 {[%emt 0:00:09]} 23. Qd3 {[%emt 0:00:12]} f5 {[%emt 0:00:12]} 24. Nd2 {[%emt 0:00:08]} f4 {[%emt 0:00:26]} 25. f3 {[%emt 0:00:06]} Rf6 {[%emt 0:00:05]} 26. d7 {[%emt 0:00:18]} Rf7 {[%emt 0:00:06]} 27. Qd6 {[%emt 0:00:08]} Bxd7 {[%emt 0:00:03]} 28. Qxc5 {[%emt 0:00:03]} Bc6 {[%emt 0:00:02]} 29. Rfd1 {[%emt 0:00:03]} Qe8 {[%emt 0:00:04]} 30. Nb3 {[%emt 0:00:04]} Rd8 {[%emt 0:00:01]} 31. Na5 {[%emt 0:00:03]} Rxd1+ {[%emt 0:00:02]} 32. Rxd1 {[%emt 0:00:01]} Re7 {[%emt 0:00:02]} 33. Nxc6 {[%emt 0:00:03]} bxc6 {[%emt 0:00:02]} 34. Rd6 {[%emt 0:00:04]} g5 {[%emt 0:00:01]} 35. Rxc6 {[%emt 0:00:06]} Rb7 {[%emt 0:00:01]} 36. Qd6 {[%emt 0:00:07]} Qb8 {[%emt 0:00:01]} 37. Qg6+ {[%emt 0:00:04]} Kh8 {[%emt 0:00:02]} 38. c5 {[%emt 0:00:01]} a5 {[%emt 0:00:05]} 39. Rc8+ {[%emt 0:00:03]} Qxc8 {[%emt 0:00:03]} 40. Nxc8 {[%emt 0:00:02]} Rb1+ {[%emt 0:00:01]} 41. Kh2 {[%emt 0:00:01]} Rc1 {[%emt 0:00:02]} 42. Nd6 {[%emt 0:00:09]} Rxc5 {[%emt 0:00:02]} 43. Nf7+ {[%emt 0:00:01]} Kg8 {[%emt 0:00:01]} 44. Nxh6+ {[%emt 0:00:02]} Kf8 {[%emt 0:00:02]} 45. Qf7# {[%emt 0:00:02]} 1-0

[Event "Queens Festival Final-D 2022"]
[Site "Tornelo"]
[Date "2022.06.25"]
[Round "3.4"]
[White "Amulya Guruprasad"]
[Black "Mak, Xiu Ning Charlene"]
[Result "0-1"]
[ECO "A45"]
[WhiteElo "1251"]
[BlackElo "1573"]
[Annotator "NA RC"]
[PlyCount "144"]
[EventDate "2022.06.24"]
[EventType "tourn"]
[EventCountry "NET"]
[SourceTitle "playchess.com"]
[Source "ChessBase"]
[SourceQuality "1"]
[TimeControl "180+2"]

1. d4 {[%emt 0:00:02]} Nf6 {[%emt 0:00:05]} 2. Bf4 {[%emt 0:00:02]} g6 {[%emt 0:00:02]} 3. e3 {[%emt 0:00:01]} Bg7 {[%emt 0:00:02]} 4. c3 {[%emt 0:00:02]} d5 {[%emt 0:00:03]} 5. Nd2 {[%emt 0:00:03]} O-O {[%emt 0:00:03]} 6. h3 {[%emt 0:00:02]} c5 {[%emt 0:00:05]} 7. Be2 {[%emt 0:00:04]} Nbd7 {[%emt 0:00:05]} 8. Ngf3 {[%emt 0:00:02]} Re8 {[%emt 0:00:03]} 9. O-O {[%emt 0:00:02]} b6 {[%emt 0:00:17]} 10. Ne5 {[%emt 0:00:05]} Bb7 {[%emt 0:00:06]} 11. Ndf3 {[%emt 0:00:08]} Ne4 {[%emt 0:00:06]} 12. Qc2 {[%emt 0:00:13]} Rc8 {[%emt 0:00:15]} 13. Nxd7 {[%emt 0:00:06]} Qxd7 {[%emt 0:00:02]} 14. Ne5 {[%emt 0:00:02]} Qd8 {[%emt 0:00:01]} 15. f3 {[%emt 0:00:02]} Nd6 {[%emt 0:00:06]} 16. Kh1 {[%emt 0:00:07]} f6 {[%emt 0:00:01]} 17. Ng4 {[%emt 0:00:04]} Qd7 {[%emt 0:00:02]} 18. Bh6 {[%emt 0:00:09]} Nf5 {[%emt 0:00:02]} 19. Bxg7 {[%emt 0:00:02]} Kxg7 {[%emt 0:00:00]} 20. Kg1 {[%emt 0:00:14]} h5 {[%emt 0:00:02]} 21. e4 {[%emt 0:00:06]} Ng3 {[%emt 0:00:02]} 22. Nxf6 {[%emt 0:00:07]} exf6 {[%emt 0:00:02]} 23. Rf2 {[%emt 0:00:02]} dxe4 {[%emt 0:00:01]} 24. fxe4 {[%emt 0:00:06]} Bxe4 {[%emt 0:00:01]} 25. Qd2 {[%emt 0:00:03]} Bf5 {[%emt 0:00:03]} 26. Bf3 {[%emt 0:00:03]} Be4 {[%emt 0:00:02]} 27. Qf4 {[%emt 0:00:04]} Qc7 {[%emt 0:00:13]} 28. Bxe4 {[%emt 0:00:13]} Qxf4 {[%emt 0:00:04]} 29. Rxf4 {[%emt 0:00:02]} Nxe4 {[%emt 0:00:01]} 30. Raf1 {[%emt 0:00:05]} cxd4 {[%emt 0:00:05]} 31. cxd4 {[%emt 0:00:03]} Rcd8 {[%emt 0:00:01]} 32. Rd1 {[%emt 0:00:04]} f5 {[%emt 0:00:06]} 33. d5 {[%emt 0:00:06]} Rd6 {[%emt 0:00:01]} 34. Kf1 {[%emt 0:00:05]} Red8 {[%emt 0:00:02]} 35. g4 {[%emt 0:00:04]} Rxd5 {[%emt 0:00:07]} 36. Rxd5 {[%emt 0:00:02]} Rxd5 {[%emt 0:00:01]} 37. gxh5 {[%emt 0:00:03]} Ng3+ {[%emt 0:00:02]} 38. Ke1 {[%emt 0:00:04]} Nxh5 {[%emt 0:00:01]} 39. Ra4 {[%emt 0:00:03]} a5 {[%emt 0:00:06]} 40. Rc4 {[%emt 0:00:02]} Rd6 {[%emt 0:00:02]} 41. Rc7+ {[%emt 0:00:02]} Kf6 {[%emt 0:00:00]} 42. h4 {[%emt 0:00:03]} Nf4 {[%emt 0:00:02]} 43. Rc2 {[%emt 0:00:06]} Nd3+ {[%emt 0:00:07]} 44. Ke2 {[%emt 0:00:08]} Nb4 {[%emt 0:00:03]} 45. Rc4 {[%emt 0:00:06]} Nxa2 {[%emt 0:00:01]} 46. Ke3 {[%emt 0:00:03]} Nb4 {[%emt 0:00:01]} 47. Kf3 {[%emt 0:00:03]} Nd5 {[%emt 0:00:06]} 48. b3 {[%emt 0:00:02]} Re6 {[%emt 0:00:07]} 49. Kf2 {[%emt 0:00:08]} Nb4 {[%emt 0:00:06]} 50. Kf3 {[%emt 0:00:04]} Nc6 {[%emt 0:00:01]} 51. Kf2 {[%emt 0:00:07]} Ne5 {[%emt 0:00:01]} 52. Rd4 {[%emt 0:00:04]} Rc6 {[%emt 0:00:02]} 53. Rd2 {[%emt 0:00:07]} Ng4+ {[%emt 0:00:03]} 54. Ke2 {[%emt 0:00:04]} f4 {[%emt 0:00:01]} 55. Kf3 {[%emt 0:00:03]} Kf5 {[%emt 0:00:03]} 56. Rd5+ {[%emt 0:00:03]} Ne5+ {[%emt 0:00:01]} 57. Ke2 {[%emt 0:00:02]} Ke4 {[%emt 0:00:01]} 58. Rd2 {[%emt 0:00:04]} f3+ {[%emt 0:00:01]} 59. Kf2 {[%emt 0:00:02]} Nd3+ {[%emt 0:00:03]} 60. Kg3 {[%emt 0:00:06]} Ke3 {[%emt 0:00:01]} 61. Rd1 {[%emt 0:00:04]} f2 {[%emt 0:00:01]} 62. Kg2 {[%emt 0:00:03]} Ke2 {[%emt 0:00:01]} 63. Rf1 {[%emt 0:00:04]} Rc1 {[%emt 0:00:05]} 64. Rxc1 {[%emt 0:00:02]} Nxc1 {[%emt 0:00:01]} 65. h5 {[%emt 0:00:04]} gxh5 {[%emt 0:00:04]} 66. b4 {[%emt 0:00:02]} f1=Q+ {[%emt 0:00:02]} 67. Kg3 {[%emt 0:00:01]} axb4 {[%emt 0:00:06]} 68. Kh4 {[%emt 0:00:02]} Qg2 {[%emt 0:00:05]} 69. Kxh5 {[%emt 0:00:02]} Qg7 {[%emt 0:00:02]} 70. Kh4 {[%emt 0:00:01]} Kf3 {[%emt 0:00:01]} 71. Kh5 {[%emt 0:00:02]} Kf4 {[%emt 0:00:01]} 72. Kh4 {[%emt 0:00:02]} Qh7# {[%emt 0:00:01]} 0-1

[Event "Queens Festival Final-D 2022"]
[Site "Tornelo"]
[Date "2022.06.25"]
[Round "3.5"]
[White "Bakhshizada, Asnad"]
[Black "Shah, Riya"]
[Result "0-1"]
[ECO "A43"]
[WhiteElo "1052"]
[BlackElo "1559"]
[Annotator "NA RC"]
[PlyCount "88"]
[EventDate "2022.06.24"]
[EventType "tourn"]
[EventCountry "NET"]
[SourceTitle "playchess.com"]
[Source "ChessBase"]
[SourceQuality "1"]
[TimeControl "180+2"]

1. d4 {[%emt 0:00:02]} g6 {[%emt 0:00:05]} 2. c4 {[%emt 0:00:03]} Bg7 {[%emt 0:00:01]} 3. Nc3 {[%emt 0:00:03]} c5 {[%emt 0:00:01]} 4. d5 {[%emt 0:00:04]} d6 {[%emt 0:00:03]} 5. Bd2 {[%emt 0:00:02]} f5 {[%emt 0:00:08]} 6. e3 {[%emt 0:00:06]} e6 {[%emt 0:00:08]} 7. g3 {[%emt 0:00:09]} Nf6 {[%emt 0:00:08]} 8. dxe6 {[%emt 0:00:06]} Bxe6 {[%emt 0:00:03]} 9. Bg2 {[%emt 0:00:03]} Nc6 {[%emt 0:00:02]} 10. Qa4 {[%emt 0:00:05]} Qc7 {[%emt 0:00:15]} 11. Nb5 {[%emt 0:00:06]} Qd7 {[%emt 0:00:09]} 12. Ne2 {[%emt 0:00:09]} O-O {[%emt 0:00:03]} 13. O-O {[%emt 0:00:05]} a6 {[%emt 0:00:02]} 14. Nbc3 {[%emt 0:00:03]} Rab8 {[%emt 0:00:09]} 15. h3 {[%emt 0:00:12]} Ne5 {[%emt 0:00:06]} 16. Qxd7 {[%emt 0:00:10]} Nfxd7 {[%emt 0:00:02]} 17. b3 {[%emt 0:00:08]} b5 {[%emt 0:00:14]} 18. Rab1 {[%emt 0:00:09]} bxc4 {[%emt 0:00:06]} 19. bxc4 {[%emt 0:00:06]} Nxc4 {[%emt 0:00:03]} 20. Be1 {[%emt 0:00:18]} Rxb1 {[%emt 0:00:07]} 21. Nxb1 {[%emt 0:00:04]} Rb8 {[%emt 0:00:02]} 22. Nbc3 {[%emt 0:00:19]} Nde5 {[%emt 0:00:09]} 23. Nf4 {[%emt 0:00:05]} Bf7 {[%emt 0:00:05]} 24. Nfd5 {[%emt 0:00:08]} Kf8 {[%emt 0:00:12]} 25. Nf4 {[%emt 0:00:13]} g5 {[%emt 0:00:09]} 26. Nfd5 {[%emt 0:00:13]} Nd3 {[%emt 0:00:06]} 27. Bf3 {[%emt 0:00:12]} Nce5 {[%emt 0:00:14]} 28. Bg2 {[%emt 0:00:08]} Nc4 {[%emt 0:00:15]} 29. Bf3 {[%emt 0:00:17]} Nxe1 {[%emt 0:00:02]} 30. Rxe1 {[%emt 0:00:03]} Bxd5 {[%emt 0:00:03]} 31. Nxd5 {[%emt 0:00:04]} Nd2 {[%emt 0:00:03]} 32. Bg2 {[%emt 0:00:01]} Rb2 {[%emt 0:00:07]} 33. Nc7 {[%emt 0:00:03]} Kf7 {[%emt 0:00:08]} 34. Rd1 {[%emt 0:00:04]} Ne4 {[%emt 0:00:03]} 35. Bxe4 {[%emt 0:00:06]} fxe4 {[%emt 0:00:02]} 36. Nxa6 {[%emt 0:00:02]} Rxa2 {[%emt 0:00:02]} 37. Nc7 {[%emt 0:00:01]} Be5 {[%emt 0:00:03]} 38. Nb5 {[%emt 0:00:03]} Rb2 {[%emt 0:00:04]} 39. Nxd6+ {[%emt 0:00:02]} Bxd6 {[%emt 0:00:04]} 40. Rxd6 {[%emt 0:00:02]} c4 {[%emt 0:00:02]} 41. Rc6 {[%emt 0:00:02]} Rc2 {[%emt 0:00:02]} 42. Kf1 {[%emt 0:00:02]} c3 {[%emt 0:00:03]} 43. Ke1 {[%emt 0:00:02]} h5 {[%emt 0:00:02]} 44. h4 {[%emt 0:00:02]} g4 {[%emt 0:00:02]} 0-1

[Event "Queens Festival Final-D 2022"]
[Site "Tornelo"]
[Date "2022.06.25"]
[Round "3.6"]
[White "Rajaram, Anika"]
[Black "Rozas Lazcano, Valeska"]
[Result "1/2-1/2"]
[ECO "E62"]
[WhiteElo "1499"]
[BlackElo "1551"]
[Annotator "NA RC"]
[PlyCount "80"]
[EventDate "2022.06.24"]
[EventType "tourn"]
[EventCountry "NET"]
[SourceTitle "playchess.com"]
[Source "ChessBase"]
[SourceQuality "1"]
[TimeControl "180+2"]

1. d4 {[%emt 0:00:02]} Nf6 {[%emt 0:00:08]} 2. c4 {[%emt 0:00:02]} g6 {[%emt 0:00:02]} 3. g3 {[%emt 0:00:00]} Bg7 {[%emt 0:00:02]} 4. Bg2 {[%emt 0:00:01]} d6 {[%emt 0:00:01]} 5. Nc3 {[%emt 0:00:01]} Nc6 {[%emt 0:00:02]} 6. Nf3 {[%emt 0:00:02]} O-O {[%emt 0:00:03]} 7. O-O {[%emt 0:00:01]} e5 {[%emt 0:00:01]} 8. d5 {[%emt 0:00:01]} Ne7 {[%emt 0:00:02]} 9. e4 {[%emt 0:00:01]} Ne8 {[%emt 0:00:03]} 10. Ne1 {[%emt 0:00:01]} f5 {[%emt 0:00:01]} 11. f4 {[%emt 0:00:03]} exf4 {[%emt 0:00:17]} 12. Bxf4 {[%emt 0:00:04]} fxe4 {[%emt 0:00:02]} 13. Bxe4 {[%emt 0:00:07]} Bh3 {[%emt 0:00:04]} 14. Ng2 {[%emt 0:00:07]} Nf6 {[%emt 0:00:03]} 15. Bc2 {[%emt 0:00:10]} Nh5 {[%emt 0:00:05]} 16. Qd2 {[%emt 0:00:09]} Nxf4 {[%emt 0:00:03]} 17. Rxf4 {[%emt 0:00:03]} Bxg2 {[%emt 0:00:06]} 18. Kxg2 {[%emt 0:00:06]} Qd7 {[%emt 0:00:05]} 19. Raf1 {[%emt 0:00:05]} Rxf4 {[%emt 0:00:02]} 20. Qxf4 {[%emt 0:00:03]} Rf8 {[%emt 0:00:04]} 21. Qd2 {[%emt 0:00:16]} Nf5 {[%emt 0:00:06]} 22. Bxf5 {[%emt 0:00:24]} Rxf5 {[%emt 0:00:07]} 23. Rxf5 {[%emt 0:00:09]} Qxf5 {[%emt 0:00:02]} 24. a3 {[%emt 0:00:05]} a6 {[%emt 0:00:11]} 25. Qe3 {[%emt 0:00:04]} Qe5 {[%emt 0:00:04]} 26. Qxe5 {[%emt 0:00:02]} Bxe5 {[%emt 0:00:02]} 27. Nd1 {[%emt 0:00:06]} Kf7 {[%emt 0:00:03]} 28. Kf3 {[%emt 0:00:03]} Kf6 {[%emt 0:00:02]} 29. Ke4 {[%emt 0:00:05]} Kg5 {[%emt 0:00:05]} 30. Kf3 {[%emt 0:00:05]} Bd4 {[%emt 0:00:02]} 31. b3 {[%emt 0:00:07]} h5 {[%emt 0:00:08]} 32. h3 {[%emt 0:00:16]} Kf5 {[%emt 0:00:05]} 33. Ne3+ {[%emt 0:00:16]} Bxe3 {[%emt 0:00:14]} 34. Kxe3 {[%emt 0:00:02]} g5 {[%emt 0:00:12]} 35. Kf3 {[%emt 0:00:16]} Ke5 {[%emt 0:00:05]} 36. Ke3 {[%emt 0:00:01]} a5 {[%emt 0:00:34]} 37. Kd3 {[%emt 0:00:08]} Kf5 {[%emt 0:00:10]} 38. Ke3 {[%emt 0:00:01]} Ke5 {[%emt 0:00:02]} 39. Kd3 {[%emt 0:00:02]} Kf5 {[%emt 0:00:06]} 40. Ke3 {[%emt 0:00:01]} Ke5 {[%emt 0:00:01]} 1/2-1/2

[Event "Queens Festival Final-D 2022"]
[Site "Tornelo"]
[Date "2022.06.25"]
[Round "4.2"]
[White "Shah, Riya"]
[Black "Rajaram, Anika"]
[Result "0-1"]
[ECO "D00"]
[WhiteElo "1559"]
[BlackElo "1499"]
[Annotator "NA RC"]
[PlyCount "72"]
[EventDate "2022.06.24"]
[EventType "tourn"]
[EventCountry "NET"]
[SourceTitle "playchess.com"]
[Source "ChessBase"]
[SourceQuality "1"]
[TimeControl "180+2"]

1. d4 {[%emt 0:00:02]} d5 {[%emt 0:00:04]} 2. e3 {[%emt 0:00:02]} Nf6 {[%emt 0:00:02]} 3. Bd3 {[%emt 0:00:01]} c5 {[%emt 0:00:04]} 4. c3 {[%emt 0:00:02]} Nc6 {[%emt 0:00:01]} 5. f4 {[%emt 0:00:01]} Bg4 {[%emt 0:00:02]} 6. Nf3 {[%emt 0:00:02]} e6 {[%emt 0:00:01]} 7. O-O {[%emt 0:00:01]} Be7 {[%emt 0:00:04]} 8. Qe1 {[%emt 0:00:03]} O-O {[%emt 0:00:02]} 9. Ne5 {[%emt 0:00:04]} Bf5 {[%emt 0:00:11]} 10. Bxf5 {[%emt 0:00:07]} exf5 {[%emt 0:00:02]} 11. Nd2 {[%emt 0:00:04]} Ne4 {[%emt 0:00:04]} 12. Ndf3 {[%emt 0:00:09]} cxd4 {[%emt 0:00:14]} 13. cxd4 {[%emt 0:00:03]} Nb4 {[%emt 0:00:06]} 14. Qe2 {[%emt 0:00:19]} Rc8 {[%emt 0:00:18]} 15. Ne1 {[%emt 0:00:22]} Nc6 {[%emt 0:00:14]} 16. Bd2 {[%emt 0:00:05]} f6 {[%emt 0:00:13]} 17. N5d3 {[%emt 0:00:10]} Re8 {[%emt 0:00:02]} 18. Rc1 {[%emt 0:00:14]} Qd7 {[%emt 0:00:13]} 19. Nc5 {[%emt 0:00:08]} Nxc5 {[%emt 0:00:09]} 20. dxc5 {[%emt 0:00:01]} d4 {[%emt 0:00:02]} 21. exd4 {[%emt 0:00:17]} Nxd4 {[%emt 0:00:22]} 22. Qc4+ {[%emt 0:00:03]} Ne6 {[%emt 0:00:05]} 23. Bc3 {[%emt 0:00:11]} Bxc5+ {[%emt 0:00:08]} 24. Kh1 {[%emt 0:00:02]} Be3 {[%emt 0:00:02]} 25. Qb3 {[%emt 0:00:16]} Bxc1 {[%emt 0:00:02]} 26. Nf3 {[%emt 0:00:05]} Bxf4 {[%emt 0:00:06]} 27. Rd1 {[%emt 0:00:02]} Qf7 {[%emt 0:00:05]} 28. Qb5 {[%emt 0:00:09]} Rcd8 {[%emt 0:00:08]} 29. Re1 {[%emt 0:00:03]} a6 {[%emt 0:00:08]} 30. Qb4 {[%emt 0:00:15]} Bd6 {[%emt 0:00:05]} 31. Qb6 {[%emt 0:00:04]} Bc5 {[%emt 0:00:09]} 32. Qb3 {[%emt 0:00:07]} Ng5 {[%emt 0:00:10]} 33. Nxg5 {[%emt 0:00:15]} Qxb3 {[%emt 0:00:05]} 34. axb3 {[%emt 0:00:02]} Rxe1+ {[%emt 0:00:03]} 35. Bxe1 {[%emt 0:00:03]} fxg5 {[%emt 0:00:01]} 36. Bc3 {[%emt 0:00:05]} Rd1+ {[%emt 0:00:02]} 0-1

[Event "Queens Festival Final-D 2022"]
[Site "Tornelo"]
[Date "2022.06.25"]
[Round "4.3"]
[White "Mak, Xiu Ning Charlene"]
[Black "Bakhshizada, Asnad"]
[Result "0-1"]
[ECO "C00"]
[WhiteElo "1573"]
[BlackElo "1052"]
[Annotator "NA RC"]
[PlyCount "72"]
[EventDate "2022.06.24"]
[EventType "tourn"]
[EventCountry "NET"]
[SourceTitle "playchess.com"]
[Source "ChessBase"]
[SourceQuality "1"]
[TimeControl "180+2"]

1. e4 {[%emt 0:00:02]} e6 {[%emt 0:00:05]} 2. d3 {[%emt 0:00:02]} d5 {[%emt 0:00:02]} 3. Nd2 {[%emt 0:00:02]} Nf6 {[%emt 0:00:04]} 4. Ngf3 {[%emt 0:00:02]} dxe4 {[%emt 0:00:03]} 5. dxe4 {[%emt 0:00:03]} Bc5 {[%emt 0:00:03]} 6. Bd3 {[%emt 0:00:10]} O-O {[%emt 0:00:03]} 7. O-O {[%emt 0:00:03]} Nc6 {[%emt 0:00:11]} 8. e5 {[%emt 0:00:25]} Nd7 {[%emt 0:00:05]} 9. Ne4 {[%emt 0:00:05]} Be7 {[%emt 0:00:11]} 10. Bf4 {[%emt 0:00:02]} Nc5 {[%emt 0:00:02]} 11. Nxc5 {[%emt 0:00:12]} Bxc5 {[%emt 0:00:04]} 12. Bg5 {[%emt 0:00:05]} Qd5 {[%emt 0:00:13]} 13. Qe2 {[%emt 0:00:06]} Nd4 {[%emt 0:00:21]} 14. Nxd4 {[%emt 0:00:55]} Bxd4 {[%emt 0:00:08]} 15. Bf4 {[%emt 0:00:03]} Bxb2 {[%emt 0:00:12]} 16. c4 {[%emt 0:00:02]} Qd4 {[%emt 0:00:09]} 17. Rab1 {[%emt 0:00:39]} Qxf4 {[%emt 0:00:04]} 18. Rxb2 {[%emt 0:00:01]} Rb8 {[%emt 0:00:13]} 19. Rfb1 {[%emt 0:00:04]} c5 {[%emt 0:00:10]} 20. Be4 {[%emt 0:00:02]} b6 {[%emt 0:00:03]} 21. g3 {[%emt 0:00:05]} Qg5 {[%emt 0:00:12]} 22. f4 {[%emt 0:00:06]} Qh6 {[%emt 0:00:06]} 23. Qg2 {[%emt 0:00:02]} Ba6 {[%emt 0:00:04]} 24. Rc2 {[%emt 0:00:06]} f5 {[%emt 0:00:08]} 25. exf6 {[%emt 0:00:02]} Qxf6 {[%emt 0:00:04]} 26. Qe2 {[%emt 0:00:04]} Rbe8 {[%emt 0:00:03]} 27. Kh1 {[%emt 0:00:02]} e5 {[%emt 0:00:14]} 28. Bd5+ {[%emt 0:00:02]} Kh8 {[%emt 0:00:03]} 29. fxe5 {[%emt 0:00:01]} Qxe5 {[%emt 0:00:09]} 30. Qg2 {[%emt 0:00:09]} Qf5 {[%emt 0:00:14]} 31. Rd1 {[%emt 0:00:06]} Bc8 {[%emt 0:00:08]} 32. Re2 {[%emt 0:00:04]} Rxe2 {[%emt 0:00:03]} 33. Qxe2 {[%emt 0:00:00]} Qg4 {[%emt 0:00:02]} 34. Qe7 {[%emt 0:00:04]} Qxd1+ {[%emt 0:00:03]} 35. Kg2 {[%emt 0:00:01]} Qd2+ {[%emt 0:00:01]} 36. Kg1 {[%emt 0:00:06]} Qf2+ {[%emt 0:00:02]} 0-1

[Event "Queens Festival Final-D 2022"]
[Site "Tornelo"]
[Date "2022.06.25"]
[Round "4.5"]
[White "Shriyan santosh Priyasha"]
[Black "Jiang, Tianyu"]
[Result "0-1"]
[ECO "E05"]
[WhiteElo "1597"]
[BlackElo "1502"]
[Annotator "NA RC"]
[PlyCount "56"]
[EventDate "2022.06.24"]
[EventType "tourn"]
[EventCountry "NET"]
[SourceTitle "playchess.com"]
[Source "ChessBase"]
[SourceQuality "1"]
[TimeControl "180+2"]

1. c4 {[%emt 0:00:02]} e6 {[%emt 0:00:04]} 2. g3 {[%emt 0:00:09]} d5 {[%emt 0:00:03]} 3. Bg2 {[%emt 0:00:03]} Nf6 {[%emt 0:00:01]} 4. d4 {[%emt 0:00:01]} Be7 {[%emt 0:00:02]} 5. Nf3 {[%emt 0:00:02]} O-O {[%emt 0:00:01]} 6. O-O {[%emt 0:00:02]} dxc4 {[%emt 0:00:02]} 7. Ne5 {[%emt 0:00:02]} Nc6 {[%emt 0:00:03]} 8. Nxc6 {[%emt 0:00:05]} bxc6 {[%emt 0:00:01]} 9. Bxc6 {[%emt 0:00:01]} Rb8 {[%emt 0:00:01]} 10. Bg2 {[%emt 0:00:03]} Bb7 {[%emt 0:00:01]} 11. Nc3 {[%emt 0:00:23]} Bxg2 {[%emt 0:00:04]} 12. Kxg2 {[%emt 0:00:02]} Qd7 {[%emt 0:00:28]} 13. e3 {[%emt 0:00:03]} c5 {[%emt 0:00:08]} 14. dxc5 {[%emt 0:00:07]} Qc6+ {[%emt 0:00:03]} 15. Kg1 {[%emt 0:00:06]} Bxc5 {[%emt 0:00:05]} 16. Qe2 {[%emt 0:00:03]} Be7 {[%emt 0:00:05]} 17. e4 {[%emt 0:00:06]} e5 {[%emt 0:00:03]} 18. Re1 {[%emt 0:00:04]} Bc5 {[%emt 0:00:17]} 19. h3 {[%emt 0:00:10]} Qe6 {[%emt 0:00:04]} 20. Kg2 {[%emt 0:00:02]} Rfd8 {[%emt 0:00:07]} 21. Bg5 {[%emt 0:00:04]} Bd4 {[%emt 0:00:14]} 22. Rac1 {[%emt 0:00:08]} h6 {[%emt 0:00:09]} 23. Bd2 {[%emt 0:00:29]} Rxb2 {[%emt 0:00:10]} 24. Red1 {[%emt 0:00:15]} Qc6 {[%emt 0:00:11]} 25. f3 {[%emt 0:00:11]} Qd7 {[%emt 0:00:22]} 26. Qxc4 {[%emt 0:00:15]} Bxc3 {[%emt 0:00:08]} 27. Qxc3 {[%emt 0:00:04]} Rxd2+ {[%emt 0:00:02]} 28. Rxd2 {[%emt 0:00:04]} Qxd2+ {[%emt 0:00:00]} 0-1